bitfinex/quotes_SOLUSD_20251226
["timestamp","ask_amount","ask_price","bid_price","bid_amount"]
[1766752177886,18.50314182,123.99,123.93,42.96165109]
[1766752178065,3.37738911,123.97,123.93,42.96165109]
[1766752180790,3.37738911,123.98,123.93,42.96165109]
[1766752189492,11.44325917,123.98,123.93,42.96165109]
[1766752193596,8.06587006,123.98,123.93,42.96165109]
[1766752194094,5.44800458,123.97,123.93,22.78897297]
[1766752199800,8.82539369,123.97,123.93,22.78897297]
[1766752200098,3.37738911,123.97,123.93,22.78897297]
[1766752201597,8.06587006,123.98,123.93,22.78897297]
[1766752201779,8.82432703,123.97,123.93,22.78897297]
[1766752201976,8.06587006,123.98,123.93,22.78897297]
[1766752202280,8.82446109,123.97,123.93,22.78897297]
[1766752202598,8.06587006,123.98,123.92,80.00716008]
[1766752202599,8.82450877,123.96,123.92,80.00716008]
[1766752202912,3.37738911,123.97,123.93,8.06893819]
[1766752203203,5.44711724,123.96,123.93,8.06893819]
[1766752203378,3.37738911,123.97,123.93,8.06893819]
[1766752203677,11.44325917,123.97,123.93,8.06893819]
[1766752213312,3.37738911,123.96,123.93,8.06893819]
[1766752220020,2.16186444,123.96,123.93,8.06893819]
[1766752225531,10.2277345,123.97,123.93,8.06893819]
[1766752225910,8.06587006,123.97,123.93,8.06893819]
[1766752226225,10.2277345,123.97,123.93,8.06893819]
[1766752227223,2.16186444,123.96,123.92,69.56963936]
[1766752227420,7.60550112,123.96,123.92,69.56963936]
[1766752227725,2.16186444,123.96,123.92,69.56963936]
[1766752228200,10.2294027,123.96,123.92,61.5]
[1766752228601,34.44345492,123.96,123.92,61.5]
[1766752228925,2.16186444,123.95,123.92,61.5]
[1766752230126,34.44345492,123.96,123.92,61.5]
[1766752230422,34.44345492,123.96,123.91,33.2277607]
[1766752231320,24.21405222,123.96,123.91,35.38962514]
[1766752231524,10.22836142,123.97,123.91,35.38962514]
[1766752231822,5.44298825,123.96,123.91,35.38962514]
[1766752232215,5.44298825,123.96,123.91,55.56555928]
[1766752232411,34.44045939,123.97,123.91,55.56555928]
[1766752232606,5.44298351,123.96,123.91,55.56555928]
[1766752233020,5.44298351,123.96,123.91,53.40369484]
[1766752236430,5.44298351,123.96,123.91,114.90369484]
[1766752237828,7.60484795,123.96,123.91,114.90369484]
[1766752238010,2.16186444,123.96,123.91,53.40369484]
[1766752238211,2.16186444,123.95,123.91,22.79008774]
[1766752243930,10.22969795,123.95,123.91,14.72]
[1766752244110,2.16186444,123.94,123.91,14.72]
[1766752244651,2.16186444,123.93,123.89,80.00915339]
[1766752244952,2.16186444,123.94,123.9,8.07059345]
[1766752251838,2.16186444,123.93,123.9,8.07059345]
[1766752252542,32.27993148,123.95,123.9,8.07059345]
[1766752252746,2.16186444,123.93,123.9,8.07059345]
[1766752252937,2.16186444,123.94,123.9,8.07059345]
[1766752253639,34.44179592,123.95,123.9,10.23245789]
[1766752253817,24.21209797,123.95,123.9,10.23245789]
[1766752254018,10.22912676,123.96,123.91,16.90186444]
[1766752254242,34.44122473,123.96,123.91,16.90186444]
[1766752254746,34.44122473,123.96,123.91,14.74]
[1766752254945,2.16186444,123.95,123.91,22.80995779]
[1766752262647,2.16186444,123.94,123.91,22.80995779]
[1766752263752,2.16186444,123.94,123.91,14.74]
[1766752264053,14.74,123.97,123.89,10.43767296]
[1766752264054,2.16186444,123.93,123.89,57.46284921]
[1766752264623,2.16186444,123.93,123.9,8.0707843]
[1766752264828,26.37591666,123.94,123.9,8.0707843]
[1766752266458,26.37591666,123.94,123.89,25.17767296]
[1766752266459,2.16186444,123.93,123.89,25.17767296]
[1766752266853,26.37982609,123.93,123.89,25.17767296]
[1766752267458,26.37982609,123.93,123.89,33.24915918]
[1766752268947,26.37982609,123.93,123.89,22.81148622]
[1766752270958,2.16186444,123.92,123.89,22.81148601]
[1766752271263,2.16186444,123.9,123.86,0.2]
[1766752271563,8.06991593,123.92,123.87,8.07256523]
[1766752271564,26.37982609,123.91,123.87,8.07256523]
[1766752271747,24.21796165,123.91,123.87,10.23442967]
[1766752274676,26.37982609,123.91,123.87,8.07256523]
[1766752275369,26.37982609,123.91,123.86,0.2]
[1766752275370,2.16186444,123.9,123.86,8.27334811]
[1766752275681,2.16186444,123.9,123.86,23.01334811]
[1766752275858,24.22382817,123.89,123.86,23.01334811]
[1766752279372,2.16186444,123.9,123.86,23.01334811]
[1766752279771,24.22382817,123.9,123.86,45.35929134]
[1766752280075,2.16186444,123.92,123.86,45.35929134]
[1766752280272,24.22187235,123.91,123.86,69.58116369]
[1766752281283,26.38373679,123.91,123.86,67.41929925]
[1766752281489,26.38373679,123.91,123.86,69.58116369]
[1766752281970,27.60272219,123.91,123.86,70.80014909]
[1766752282688,3.38084984,123.91,123.86,70.80014909]
[1766752282876,24.22187235,123.9,123.86,70.80014909]
[1766752283069,3.38084984,123.91,123.86,70.80014909]
[1766752283395,27.60272219,123.91,123.86,70.80014909]
[1766752285596,27.60272219,123.91,123.86,67.41929925]
[1766752285781,27.60272219,123.91,123.86,70.80014909]
[1766752286508,24.22187235,123.91,123.86,70.80014909]
[1766752286667,27.60272219,123.91,123.86,70.80014909]
[1766752286871,24.22187235,123.91,123.86,70.80014909]
[1766752289082,11.448902,123.95,123.89,3.38084984]
[1766752289391,35.66686365,123.95,123.89,18.12084984]
[1766752289776,3.38084984,123.96,123.9,3.38084984]
[1766752289976,3.38084984,123.96,123.91,3.38084984]
[1766752290683,3.38084984,123.96,123.92,24.21405222]
[1766752294587,42.71843929,123.97,123.92,24.21405222]
[1766752294903,3.38084984,123.96,123.92,24.21405222]
[1766752296910,11.44804619,123.96,123.92,24.21405222]
[1766752309421,3.38084984,123.95,123.92,24.21405222]
[1766752311326,35.66209841,123.96,123.92,24.21405222]
[1766752313926,35.66209841,123.96,123.91,26.19066344]
[1766752314226,35.66209841,123.96,123.91,50.40471566]
[1766752317029,32.28124857,123.96,123.91,50.40471566]
[1766752317329,35.66209841,123.96,123.91,50.40471566]
[1766752317514,35.66209841,123.96,123.91,47.02386582]
[1766752318931,35.66209841,123.96,123.91,22.8098136]
[1766752319227,35.66209841,123.96,123.92,24.21405222]
[1766752319423,11.44804619,123.96,123.92,32.28373693]
[1766752322023,35.66209841,123.96,123.92,32.28373693]
[1766752322225,35.66209841,123.96,123.92,8.06968471]
[1766752323307,35.66209841,123.96,123.92,32.28373693]
[1766752323929,11.44804619,123.96,123.92,8.06968471]
[1766752334137,5.44788718,123.95,123.92,8.06968471]
[1766752335042,3.38084984,123.96,123.92,8.06968471]
[1766752335242,5.44817356,123.95,123.92,8.06968471]
[1766752339841,8.8290234,123.95,123.92,8.06968471]
[1766752340046,3.38084984,123.95,123.92,8.06968471]
[1766752341949,10.22936077,123.96,123.92,8.06968471]
[1766752342127,5.44908478,123.95,123.92,8.06968471]
[1766752345053,7.61130326,123.95,123.92,8.06968471]
[1766752345254,2.16221848,123.95,123.92,8.06968471]
[1766752346456,2.16221848,123.95,123.91,22.8100961]
[1766752348960,10.22936077,123.96,123.91,22.8100961]
[1766752349255,5.44907679,123.95,123.91,22.8100961]
[1766752349447,5.44907679,123.95,123.91,24.97231458]
[1766752351956,8.06581706,123.98,123.92,2.16221848]
[1766752352158,5.44821274,123.97,123.92,2.16221848]
[1766752352346,5.44821274,123.97,123.92,23.0375644]
[1766752353254,2.16221848,123.96,123.92,20.87534592]
[1766752353454,2.16221848,123.96,123.92,14.74]
[1766752353958,10.22958528,123.96,123.92,14.74]
[1766752354957,8.0673668,123.96,123.92,14.74]
[1766752359371,5.44544779,123.95,123.92,14.74]
[1766752362970,5.44544779,123.95,123.91,22.8100961]
[1766752363944,8.0673668,123.96,123.91,24.97231458]
[1766752364148,8.0673668,123.96,123.91,33.03968138]
[1766752364871,10.22868617,123.97,123.91,30.8774629]
[1766752365050,5.44495768,123.96,123.91,33.03968138]
[1766752366371,13.51214487,123.96,123.91,30.8774629]
[1766752366668,2.16221848,123.97,123.92,2.16221848]
[1766752366669,8.06672462,123.97,123.92,2.16221848]
[1766752366885,8.06516654,123.99,123.94,2.16221848]
[1766752367053,5.44437671,123.98,123.94,16.90221848]
[1766752367958,5.44437671,123.98,123.94,39.22637532]
[1766752368173,5.44437671,123.98,123.94,47.29426648]
[1766752370178,10.22738502,123.99,123.94,47.29426648]
[1766752371693,10.22738502,123.99,123.94,45.132048]
[1766752372487,5.43764294,123.98,123.94,45.132048]
[1766752374679,7.59986142,123.98,123.94,45.132048]
[1766752374878,2.16221848,123.98,123.94,45.132048]
[1766752375290,2.84221848,123.98,123.94,45.132048]
[1766752375688,2.16221848,123.98,123.94,45.132048]
[1766752375986,0.68,123.97,123.94,37.06415684]
[1766752376382,0.68,123.97,123.94,14.74]
[1766752379585,0.68,123.97,123.94,22.80834938]
[1766752387203,0.68,123.97,123.94,14.74]
[1766752387406,0.68,123.96,123.94,14.74]
[1766752388013,0.68,123.96,123.94,22.80832612]
[1766752393114,0.68,123.96,123.93,8.06907124]
[1766752393292,0.68,123.96,123.93,22.78907124]
[1766752397325,0.66,123.95,123.93,14.72]
[1766752397737,0.66,123.95,123.91,33.22783685]
[1766752399226,0.66,123.95,123.91,22.79016389]
[1766752400331,2.82221848,123.95,123.91,22.79016389]
[1766752400940,2.16221848,123.95,123.91,22.79016389]
[1766752401132,0.66,123.94,123.91,22.79016389]
[1766752403218,0.66,123.94,123.91,24.95238237]
[1766752403951,0.66,123.94,123.91,26.1685107]
[1766752405051,0.66,123.94,123.91,22.79016389]
[1766752407352,3.37834681,123.95,123.91,22.79016389]
[1766752415979,11.44624558,123.95,123.91,14.72]
[1766752425254,8.06738243,123.96,123.91,26.16861986]
[1766752425586,11.44572924,123.96,123.91,26.16861986]
[1766752427381,11.44572924,123.96,123.91,22.79027305]
[1766752427587,11.44572924,123.96,123.91,26.16861986]
[1766752429470,3.37834681,123.95,123.91,22.79027305]
[1766752430183,3.37834681,123.96,123.91,22.79027305]
[1766752430875,11.44564339,123.96,123.91,26.16861986]
[1766752433887,11.44564339,123.96,123.91,22.79027305]
[1766752438293,5.44396514,123.95,123.91,22.79027305]
[1766752439198,5.44396514,123.95,123.91,26.16861986]
[1766752439499,5.44396514,123.95,123.91,22.79027305]
[1766752439798,8.82231195,123.95,123.91,22.79027305]
[1766752439985,3.37834681,123.95,123.91,22.79027305]
[1766752440193,3.37834681,123.94,123.91,14.72]
[1766752440492,11.44621758,123.95,123.91,14.72]
[1766752443995,11.44621758,123.95,123.9,72.94927034]
[1766752443996,3.37834681,123.93,123.9,61.5]
[1766752444200,8.06787077,123.95,123.9,61.5]
[1766752444500,3.37834681,123.93,123.89,33.24920243]
[1766752445092,11.44694799,123.94,123.9,8.07097494]
[1766752445306,5.44572902,123.93,123.9,8.07097494]
[1766752445685,5.44572902,123.93,123.9,11.44932175]
[1766752445894,3.37834681,123.95,123.9,11.44932175]
[1766752446104,5.44410734,123.94,123.9,11.44932175]
[1766752447005,5.44410734,123.94,123.9,30.96380763]
[1766752450801,11.44615383,123.95,123.9,30.96380763]
[1766752450994,11.44615383,123.95,123.9,8.07097494]
[1766752452203,3.37834681,123.94,123.9,8.07097494]
[1766752455815,8.06780702,123.95,123.9,8.07097494]
[1766752456014,5.44142374,123.94,123.9,11.44932175]
[1766752456401,5.44142374,123.94,123.9,35.66532853]
[1766752457516,5.44142374,123.94,123.9,11.44932175]
[1766752458013,11.44615383,123.95,123.9,11.44932175]
[1766752458396,11.44615383,123.95,123.9,35.66532853]
[1766752459714,11.44615383,123.95,123.9,11.44932175]
[1766752460796,3.37834681,123.94,123.9,8.07097494]
[1766752463019,3.37834681,123.95,123.9,8.07097494]
[1766752463216,3.37834681,123.95,123.9,11.44932175]
[1766752463519,3.37834681,123.95,123.9,35.66532853]
[1766752464217,11.44614192,123.95,123.9,35.66532853]
[1766752465921,2.16248029,123.95,123.9,34.44946201]
[1766752468326,10.23030732,123.95,123.9,34.44946201]
[1766752468929,10.23030732,123.95,123.9,32.28698172]
[1766752469320,8.06711842,123.96,123.9,32.28698172]
[1766752469525,7.6039195,123.95,123.9,32.28698172]
[1766752469728,2.16248029,123.95,123.9,8.07097494]
[1766752471129,2.16248029,123.94,123.9,8.07097494]
[1766752473232,2.16248029,123.95,123.9,8.07097494]
[1766752474230,10.23038617,123.95,123.9,8.07097494]
[1766752482837,2.16248029,123.94,123.9,8.07097494]
[1766752484642,10.23038617,123.95,123.9,8.07097494]
[1766752487847,33.24373898,123.98,123.92,2.16248029]
[1766752488019,7.60496619,123.97,123.92,2.16248029]
[1766752488218,20.16379383,123.99,123.94,2.16248029]
[1766752488219,34.43976651,123.99,123.94,2.16248029]
[1766752488423,10.22766854,123.99,123.94,2.16248029]
[1766752489247,10.22766854,123.99,123.94,10.23066872]
[1766752490622,2.16248029,123.99,123.94,10.23066872]
[1766752490945,115.12710291,124.0,123.95,2.16248029]
[1766752491118,5.43617575,123.99,123.95,2.16248029]
[1766752492047,5.43617575,123.99,123.94,34.43885915]
[1766752492242,5.43617575,123.99,123.94,10.23066872]
[1766752492548,15.66440721,123.99,123.94,10.23084896]
[1766752492745,10.22823146,123.99,123.94,10.23084896]
[1766752500363,2.16248029,123.99,123.94,10.23084896]
[1766752500544,2.16248029,124.0,123.95,2.16248029]
[1766752501246,2.16248029,123.99,123.95,2.16248029]
[1766752503240,2.16248029,123.99,123.95,10.22960735]
[1766752503544,2.16248029,124.0,123.95,10.22960735]
[1766752504549,2.16248029,124.0,123.95,24.94960735]
[1766752504937,18.50179773,124.01,123.95,24.94960735]
[1766752505146,2.16248029,124.0,123.95,24.94960735]
[1766752506268,18.50179773,124.01,123.95,24.94960735]
[1766752506562,2.16248029,124.0,123.95,24.94960735]
[1766752507662,2.16248029,124.0,123.95,22.78712706]
[1766752507866,2.16248029,124.0,123.95,24.94960735]
[1766752508368,2.16248029,123.99,123.95,24.94960735]
[1766752512775,2.16248029,124.0,123.95,24.94960735]
[1766752515873,2.16248029,124.0,123.95,22.78712706]
[1766752516173,2.16248029,124.0,123.95,24.94960735]
[1766752516870,10.22709312,124.0,123.95,24.94960735]
[1766752517476,2.16248029,123.99,123.95,24.94960735]
[1766752520078,8.06461283,124.0,123.95,24.94960735]
[1766752520277,10.22709312,124.0,123.95,24.94960735]
[1766752521467,2.16248029,123.99,123.95,22.78712706]
[1766752522694,10.22709312,124.0,123.95,24.94960735]
[1766752525277,0.68,123.99,123.95,24.94960735]
[1766752525985,0.68,123.99,123.95,26.16326324]
[1766752547592,0.68,123.99,123.96,11.4432]
[1766752557310,21.87774196,124.01,123.96,11.4432]
[1766752557520,5.44410037,124.0,123.96,11.4432]
[1766752559718,5.44410037,124.0,123.96,8.06706382]
[1766752559910,5.44410037,124.0,123.96,11.4432]
[1766752560825,5.44410037,124.0,123.96,8.06706382]
[1766752560998,8.82023655,124.0,123.96,11.4432]
[1766752561198,5.44410037,123.99,123.96,11.4432]
[1766752562223,18.50160578,124.01,123.96,11.4432]
[1766752562224,3.37613618,124.0,123.96,11.4432]
[1766752562521,5.44378232,123.99,123.96,11.4432]
[1766752563623,4.94378232,123.99,123.96,11.4432]
[1766752563797,3.37613618,124.0,123.96,11.4432]
[1766752563997,3.37613618,124.0,123.95,87.66361371]
[1766752563998,11.440867,124.0,123.95,87.66361371]
[1766752564516,3.37613618,123.99,123.95,87.66361371]
[1766752565089,3.37613618,123.98,123.95,61.5]
[1766752565301,3.37613618,123.97,123.95,61.5]
[1766752565499,13.81380914,123.97,123.92,26.16560216]
[1766752565719,13.81380914,123.97,123.93,3.37613618]
[1766752566015,3.37613618,123.97,123.92,26.16560216]
[1766752568126,11.44262792,123.97,123.92,22.78946598]
[1766752568429,11.44262792,123.97,123.92,26.16560216]
[1766752568633,35.65472589,123.97,123.92,26.16560216]
[1766752571028,11.44328698,123.96,123.91,13.81380914]
[1766752571235,11.44328698,123.96,123.91,18.09613618]
[1766752571435,11.44328698,123.96,123.91,89.78730093]
[1766752571726,11.44328698,123.96,123.92,3.37613618]
[1766752572297,3.37613618,123.97,123.93,3.37613618]
[1766752573430,11.44261536,123.97,123.92,8.06967893]
[1766752573731,11.44261536,123.97,123.92,11.44581511]
[1766752576935,11.44261536,123.97,123.93,3.37613618]
[1766752577350,11.44261536,123.97,123.93,11.4450963]
[1766752578761,24.21209797,123.98,123.94,3.37613618]
[1766752579062,24.21209797,123.98,123.95,3.37613618]
[1766752579428,11.44083266,124.0,123.95,11.44371269]
[1766752579626,35.64902309,124.0,123.95,11.44371269]
[1766752579827,3.37613618,123.99,123.95,11.44371269]
[1766752580426,32.27288691,124.0,123.95,10.94371269]
[1766752580627,3.37613618,123.99,123.95,10.94371269]
[1766752582326,32.27288691,124.0,123.95,8.06757651]
[1766752582534,3.37613618,123.99,123.95,11.44371269]
[1766752583032,11.44132274,123.99,123.95,11.44371269]
[1766752585158,8.06518656,123.99,123.95,11.44371269]
[1766752585350,0.67,123.98,123.95,11.44371269]
[1766752586158,0.67,123.98,123.95,10.22846037]
[1766752586842,0.67,123.98,123.94,10.22930406]
[1766752588064,0.67,123.98,123.94,34.43749449]
[1766752591463,0.67,123.98,123.94,10.22930406]
[1766752592029,0.67,123.98,123.94,8.0684202]
[1766752592246,0.67,123.98,123.95,2.16088386]
[1766752593854,0.67,123.98,123.96,2.16088386]
[1766752594054,0.67,123.98,123.95,34.43437385]
[1766752594256,0.67,123.98,123.95,10.22813671]
[1766752601264,0.67,123.98,123.96,8.06711842]
[1766752601838,0.67,123.98,123.96,10.22800228]
[1766752604462,0.67,123.98,123.96,8.06711842]
[1766752605870,53.38829391,123.98,123.87,0.72]
[1766752606064,2.16088386,123.93,123.9,0.72]
[1766752606363,2.16088386,123.91,123.88,0.72]
[1766752606739,2.16088386,123.91,123.88,11.15767296]
[1766752606939,14.72,123.9,123.89,10.43767296]
[1766752607183,14.72,123.9,123.88,0.72]
[1766752608578,14.72,123.9,123.89,10.43767296]
[1766752608761,14.72,123.9,123.86,0.92]
[1766752608762,16.88088386,123.9,123.86,0.92]
[1766752609159,2.16088386,123.89,123.86,8.99317965]
[1766752609355,26.38666816,123.89,123.86,8.99317965]
[1766752609761,2.16088386,123.89,123.86,8.99317965]
[1766752610185,24.2257843,123.88,123.86,8.99317965]
[1766752612052,24.2257843,123.88,123.86,0.92]
[1766752614181,24.2257843,123.88,123.86,0.2]
[1766752614391,34.45941512,123.88,123.86,0.2]
[1766752614603,2.16088386,123.87,123.86,0.2]
[1766752615385,34.45941512,123.88,123.86,1e-08]
[1766752616277,24.2257843,123.88,123.86,0.72000001]
[1766752617481,24.2257843,123.88,123.86,1e-08]
[1766752618063,26.38666816,123.88,123.86,1e-08]
[1766752618400,2.16088386,123.87,123.86,1e-08]
[1766752620285,10.23386359,123.87,123.83,14.94]
[1766752620479,2.16088386,123.86,123.83,0.2]
[1766752620778,10.23386359,123.87,123.83,0.92]
[1766752621155,22.8165014,123.85,123.83,0.92]
[1766752624761,8.07297973,123.87,123.83,0.92]
[1766752624960,10.23335068,123.88,123.84,0.72]
[1766752625367,8.07246682,123.88,123.84,0.72]
[1766752626181,10.23335068,123.88,123.84,0.72]
[1766752629384,8.07246682,123.88,123.84,0.72]
[1766752633294,8.07246682,123.88,123.83,8.27538487]
[1766752633992,31.08719443,123.89,123.83,10.43626873]
[1766752634186,8.07180956,123.89,123.83,10.43626873]
[1766752634380,10.23269342,123.89,123.83,10.43626873]
[1766752635393,2.16088386,123.89,123.84,2.16088386]
[1766752636981,2.16088386,123.89,123.83,10.43626873]
[1766752637288,28.24951574,123.9,123.83,8.27538487]
[1766752637289,10.23321191,123.88,123.83,8.27538487]
[1766752637492,10.23321191,123.88,123.83,10.43626873]
[1766752638590,10.23256034,123.89,123.83,10.43626873]
[1766752639798,2.16088386,123.88,123.83,8.27538487]
[1766752640595,28.25086769,123.89,123.83,8.27538487]
[1766752640802,10.23367975,123.88,123.83,8.27538487]
[1766752643903,2.16088386,123.87,123.83,8.27538487]
[1766752645993,10.23366072,123.88,123.83,8.27538487]
[1766752646301,10.23366072,123.88,123.83,10.43626873]
[1766752648004,11.45513588,123.88,123.83,11.65774389]
[1766752650192,11.45513588,123.88,123.83,8.27538487]
[1766752650505,20.17919121,123.89,123.83,8.27538487]
[1766752650506,11.45541033,123.87,123.83,0.2]
[1766752652089,11.45541033,123.87,123.83,8.27547194]
[1766752652604,11.45541033,123.87,123.83,0.2]
[1766752653310,11.45541033,123.87,123.83,8.27541945]
[1766752653890,28.25086769,123.89,123.83,8.27541945]
[1766752654108,3.38235902,123.87,123.83,8.27541945]
[1766752655610,11.45511911,123.88,123.83,8.27541945]
[1766752656012,8.07276009,123.88,123.83,11.65777847]
[1766752656204,8.07102502,123.9,123.85,3.38235902]
[1766752656515,11.45338404,123.9,123.85,3.38235902]
[1766752656712,3.38235902,123.89,123.84,79.62235902]
[1766752657220,3.38235902,123.89,123.84,87.69723279]
[1766752658522,11.45434929,123.89,123.84,87.69723279]
[1766752658816,11.45434929,123.89,123.85,3.38235902]
[1766752660493,5.44425355,123.88,123.84,87.69702675]
[1766752660996,5.44425355,123.88,123.84,84.31466773]
[1766752661418,5.44425355,123.88,123.84,22.81466773]
[1766752662214,8.82661257,123.88,123.84,22.81466773]
[1766752662511,3.38235902,123.88,123.84,22.81466773]
[1766752666725,11.45492389,123.88,123.84,14.74]
[1766752667094,3.38235902,123.87,123.84,14.74]
[1766752667810,3.38235902,123.87,123.83,8.27531856]
[1766752675726,3.38235902,123.88,123.83,8.27531856]
[1766752677531,11.4547715,123.88,123.83,8.27531856]
[1766752679830,11.4540355,123.89,123.83,8.27531856]
[1766752680030,5.44674352,123.88,123.83,8.27531856]
[1766752681034,13.51908115,123.88,123.83,8.27531856]
[1766752681238,8.07233763,123.88,123.83,8.27531856]
[1766752685334,8.07233763,123.88,123.84,0.69]
[1766752691538,11.45469665,123.88,123.84,0.69]
[1766752694124,11.45469665,123.88,123.85,0.72]
[1766752694420,35.6840051,123.89,123.85,0.72]
[1766752694623,5.44852536,123.88,123.85,0.72]
[1766752696338,8.83088438,123.88,123.85,0.72]
[1766752696538,3.38235902,123.88,123.85,0.72]
[1766752697237,3.38235902,123.87,123.84,0.72]
[1766752697442,5.44923409,123.86,123.84,0.72]
[1766752698237,8.83159311,123.86,123.83,0.2]
[1766752698537,11.45603043,123.86,123.83,0.92]
[1766752700039,8.07367141,123.86,123.83,0.92]
[1766752700342,11.45603043,123.86,123.83,0.92]
[1766752702047,3.38235902,123.84,123.82,0.2]
[1766752703935,3.38235902,123.84,123.82,0.92]
[1766752704949,11.45735553,123.84,123.82,0.92]
[1766752707847,8.07499651,123.84,123.82,0.92]
[1766752708051,18.12235902,123.87,123.83,0.72]
[1766752708250,3.38235902,123.87,123.83,0.72]
[1766752708427,27.61597103,123.87,123.83,0.72]
[1766752709232,35.68909364,123.87,123.83,0.72]
[1766752709952,2.16602358,123.84,123.82,0.92]
[1766752710156,28.25557195,123.87,123.82,0.92]
[1766752710329,2.16602358,123.85,123.82,0.92]
[1766752711850,10.24031574,123.85,123.82,0.92]
[1766752712761,2.16602358,123.85,123.83,0.72]
[1766752714037,24.23556973,123.86,123.83,0.72]
[1766752714242,8.07321672,123.87,123.84,0.72]
[1766752715552,2.16602358,123.88,123.85,0.72]
[1766752715553,8.0725814,123.88,123.85,0.72]
[1766752715987,10.23860498,123.88,123.85,0.72]
[1766752717265,10.23860498,123.88,123.83,24.98137694]
[1766752722044,8.0725814,123.88,123.83,24.98137694]
[1766752725269,8.0725814,123.88,123.84,2.16602358]
[1766752727261,8.0725814,123.88,123.83,24.98137694]
[1766752727761,8.0725814,123.88,123.84,2.16602358]
[1766752729358,8.0725814,123.88,123.85,2.16602358]
[1766752729872,8.0725814,123.88,123.84,2.16602358]
[1766752741752,10.23860498,123.88,123.83,14.74]
[1766752742080,2.16602358,123.86,123.82,94.95375955]
[1766752742253,2.16602358,123.86,123.82,33.45375955]
[1766752747866,10.23971574,123.86,123.82,10.63767296]
[1766752748267,24.97971574,123.86,123.82,10.63767296]
[1766752753387,24.97971574,123.86,123.82,18.71382914]
[1766752753688,14.74,123.86,123.82,20.87985272]
[1766752753878,10.23917147,123.87,123.82,20.87985272]
[1766752754191,24.97917147,123.87,123.82,20.87985272]
[1766752754785,22.81314789,123.87,123.82,20.87985272]
[1766752756186,22.81314789,123.87,123.83,2.16602358]
[1766752756385,22.81314789,123.87,123.82,76.27011245]
[1766752760791,24.97917147,123.87,123.82,74.10408887]
[1766752761013,24.97917147,123.87,123.82,76.27011245]
[1766752765178,2.16602358,123.86,123.82,74.10408887]
[1766752766083,2.16602358,123.85,123.82,74.10408887]
[1766752770003,3.3839384,123.85,123.82,74.10408887]
[1766752772705,3.3839384,123.85,123.82,66.02793269]
[1766752772886,8.07380159,123.86,123.82,66.02793269]
[1766752773087,3.3839384,123.84,123.82,66.02793269]
[1766752774790,3.3839384,123.85,123.82,66.02793269]
[1766752777402,3.3839384,123.84,123.82,55.59025973]
[1766752778784,8.07382712,123.86,123.82,55.59025973]
[1766752778987,14.74,123.88,123.82,67.05033142]
[1766752779196,5.44377318,123.87,123.82,87.24093067]
[1766752779414,18.1239384,123.89,123.83,3.3839384]
[1766752779613,5.44398529,123.88,123.83,3.3839384]
[1766752779910,18.1239384,123.89,123.83,3.3839384]
[1766752780315,18.50892459,123.9,123.83,3.3839384]
[1766752780316,8.07125163,123.9,123.84,8.0749354]
[1766752780611,18.1239384,123.9,123.84,31.6462123]
[1766752780792,3.3839384,123.89,123.84,31.6462123]
[1766752781290,14.74,123.9,123.84,31.6462123]
[1766752781484,3.3839384,123.89,123.84,31.6462123]
[1766752781682,3.3839384,123.89,123.84,28.2622739]
[1766752783200,3.3839384,123.88,123.84,28.2622739]
[1766752784289,22.81122543,123.9,123.84,28.2622739]
[1766752784614,3.3839384,123.88,123.84,28.2622739]
[1766752790315,22.81122543,123.9,123.84,28.2622739]
[1766752790499,3.3839384,123.89,123.84,28.2622739]
[1766752790818,3.3839384,123.88,123.84,28.2622739]
[1766752791619,22.81122543,123.9,123.84,28.2622739]
[1766752791922,3.3839384,123.88,123.84,28.2622739]
[1766752796028,22.81122543,123.9,123.84,28.2622739]
[1766752796214,3.3839384,123.88,123.84,28.2622739]
[1766752798427,8.07122543,123.9,123.84,28.2622739]
[1766752798727,3.3839384,123.88,123.84,28.2622739]
[1766752799024,8.07122543,123.9,123.84,28.2622739]
[1766752799327,3.3839384,123.88,123.84,28.2622739]
[1766752800727,22.8105429,123.91,123.84,56.82388526]
[1766752800927,3.3839384,123.91,123.86,3.3839384]
[1766752801318,3.3839384,123.91,123.85,3.3839384]
[1766752802031,3.3839384,123.91,123.86,8.07363151]
[1766752802328,3.3839384,123.9,123.86,8.07363151]
[1766752804536,3.3839384,123.9,123.85,28.25999191]
[1766752805046,3.3839384,123.9,123.85,89.75999191]
[1766752807241,3.3839384,123.9,123.85,93.14393031]
[1766752807410,3.3839384,123.91,123.85,93.14393031]
[1766752807830,3.3839384,123.9,123.85,93.14393031]
[1766752809613,3.3839384,123.91,123.85,93.14393031]
[1766752809937,32.29381595,123.92,123.85,93.14393031]
[1766752810137,3.3839384,123.92,123.88,10.43767296]
[1766752810432,3.3839384,123.92,123.88,25.17767296]
[1766752810837,3.3839384,123.91,123.88,25.17767296]
[1766752811139,3.3839384,123.91,123.88,10.43767296]